bitfinex-derivatives/quotes_ETHF0:USTF0_20250116
["timestamp","ask_amount","ask_price","bid_price","bid_amount"]
[1736986722416,3.2078,3423.1,3423.0,0.58425]
[1736986722731,3.2078,3423.1,3422.9,0.58426]
[1736986722917,3.2078,3423.1,3423.0,0.58425]
[1736986725508,3.2078,3423.1,3422.5,0.58433]
[1736986725820,3.2078,3423.1,3422.8,0.58427]
[1736986726119,3.2078,3423.1,3422.9,0.58426]
[1736986726417,3.2078,3423.1,3422.5,0.58433]
[1736986726608,3.2078,3423.1,3422.4,0.4469]
[1736986727419,3.2078,3423.1,3423.0,0.58425]
[1736986727611,3.2078,3423.1,3422.4,0.4469]
[1736986727612,3.2078,3423.1,3422.9,0.58426]
[1736986727822,3.2078,3423.1,3421.8,3.6579]
[1736986728120,3.69192767,3423.2,3421.8,3.6579]
[1736986728121,3.79213,3422.6,3421.9,0.58444]
[1736986728417,3.79213,3422.6,3422.3,0.58436]
[1736986728918,3.79213,3422.6,3422.2,0.58438]
[1736986728919,0.58434,3422.5,3422.2,0.58438]
[1736986729120,3.79212,3422.6,3422.3,0.58436]
[1736986729422,3.2078,3422.6,3422.4,0.58435]
[1736986729721,3.2078,3422.6,3421.6,1.46122]
[1736986729918,0.5843,3422.7,3422.4,0.58435]
[1736986730114,3.2078,3422.5,3421.4,6.45862767]
[1736986730417,3.2078,3422.1,3421.9,0.58443]
[1736986730622,3.2078,3422.1,3422.0,0.58442]
[1736986732427,3.2078,3422.1,3422.0,0.94070889]
[1736986733010,3.2078,3422.1,3422.0,0.94070304]
[1736986733717,3.2078,3423.0,3422.4,0.58435]
[1736986733919,3.2078,3423.0,3422.9,0.58426]
[1736986734823,3.2078,3423.0,3422.9,0.94079627]
[1736986735018,3.2078,3423.0,3422.9,0.94079857]
[1736986736122,3.2078,3423.6,3423.5,0.58416]
[1736986737321,3.2078,3423.6,3423.5,0.94144887]
[1736986738220,3.2078,3424.0,3423.5,0.35728887]
[1736986738414,0.8898,3424.2,3424.1,0.58406]
[1736986739020,0.8898,3424.2,3424.1,0.94196333]
[1736986739226,0.8898,3424.2,3424.1,0.58406]
[1736986739723,0.8898,3424.2,3424.1,0.94194104]
[1736986740226,0.8898,3424.2,3423.6,3.2078]
[1736986740421,0.8898,3424.2,3424.0,0.58407]
[1736986740619,0.8898,3424.2,3423.6,3.2078]
[1736986740817,0.8898,3424.2,3424.1,0.58406]
[1736986741023,0.8898,3424.2,3423.6,3.21163861]
[1736986741324,0.8898,3424.2,3423.9,0.58409]
[1736986741325,3.2078,3424.0,3423.9,0.58409]
[1736986741531,3.2078,3424.0,3423.9,0.94196386]
[1736986741722,3.2078,3424.0,3423.9,0.35790755]
[1736986742431,3.2078,3424.0,3423.8,0.58411]
[1736986742432,3.2078,3424.0,3423.6,0.00383861]
[1736986742724,3.2078,3424.0,3423.9,0.58409]
[1736986742928,3.2078,3424.0,3423.9,0.94201727]
[1736986743529,3.2078,3424.0,3423.9,0.94204371]
[1736986744022,3.2078,3424.0,3423.9,0.94204668]
[1736986744421,3.2078,3424.0,3423.9,0.58409]
[1736986745224,3.2078,3424.0,3423.8,0.5841]
[1736986745535,3.2078,3424.0,3423.9,0.58409]
[1736986745720,3.2078,3424.0,3423.8,0.5841]
[1736986745920,3.2078,3424.0,3423.6,0.00383861]
[1736986746120,0.58411,3423.8,3423.7,0.35789538]
[1736986746331,0.58413,3423.7,3423.6,0.00383861]
[1736986746633,3.2078,3424.0,3423.6,0.36176917]
[1736986746829,3.2078,3424.0,3423.6,0.00383861]
[1736986747031,0.58412,3423.8,3423.6,0.00383861]
[1736986747230,3.2078,3424.0,3423.6,0.00383861]
[1736986747431,0.58413,3423.7,3423.6,0.00383861]
[1736986747736,0.58413,3423.7,3423.6,0.36177478]
[1736986747931,0.58413,3423.8,3423.6,0.36177478]
[1736986748134,0.58413,3423.8,3423.6,0.00383861]
[1736986748427,3.2078,3424.0,3423.7,0.58412]
[1736986748632,3.2078,3424.0,3423.9,0.58409]
[1736986749135,3.2078,3424.0,3423.9,0.94198353]
[1736986749429,0.58402,3424.4,3423.9,0.35789353]
[1736986749430,3.2078,3424.4,3423.9,0.35789353]
[1736986749731,3.2078,3424.4,3424.3,0.58403]
[1736986749930,3.2078,3424.4,3424.3,0.94186049]
[1736986750537,3.2078,3424.9,3424.8,0.58394]
[1736986750830,3.2078,3424.9,3424.8,0.35783049]
[1736986751029,0.58394,3424.8,3424.6,0.58397]
[1736986751231,3.2078,3424.9,3424.1,3.2078]
[1736986751423,3.79173,3424.9,3424.7,0.58394]
[1736986751635,3.2078,3424.9,3424.8,0.58394]
[1736986751823,3.2078,3424.9,3424.7,0.58396]
[1736986752033,3.2078,3424.9,3424.1,5.98252767]
[1736986752228,3.2078,3424.9,3424.8,0.58394]
[1736986752434,3.2078,3425.3,3425.2,0.58387]
[1736986752642,3.2078,3425.3,3424.9,1.3624]
[1736986752838,3.2078,3425.3,3424.9,0.4575]
[1736986753133,0.58391,3425.0,3424.9,0.4575]
[1736986753332,3.2078,3425.3,3424.9,0.4575]
[1736986753531,0.58387,3425.2,3424.9,0.4575]
[1736986753731,3.2078,3425.3,3424.9,0.4575]
[1736986754236,3.2078,3425.3,3425.2,0.58387]
[1736986754434,0.58381,3425.6,3425.4,0.58383]
[1736986754736,0.58381,3425.6,3425.5,0.58382]
[1736986755135,0.58381,3425.6,3425.0,0.4696]
[1736986755333,0.58383,3425.5,3425.3,0.58385]
[1736986755535,0.58381,3425.6,3425.1,0.58389]
[1736986755735,3.2078,3425.7,3425.0,0.4696]
[1736986756241,3.2078,3425.7,3425.3,0.58384]
[1736986756434,0.58383,3425.5,3425.3,0.58385]
[1736986757038,3.2078,3425.7,3425.0,0.4696]
[1736986757237,0.58388,3425.2,3425.0,1.0535]
[1736986757540,3.2078,3425.7,3424.9,3.6653]
[1736986757740,0.58391,3425.0,3424.7,0.58395]
[1736986758041,3.2078,3425.1,3425.0,0.58391]
[1736986758233,3.2078,3425.5,3424.7,3.2078]
[1736986758429,3.79163,3425.5,3425.3,0.58385]
[1736986758634,3.79163,3425.5,3424.7,3.2078]
[1736986758635,3.2078,3425.5,3424.7,3.2078]
[1736986758833,3.2078,3425.5,3425.4,0.58384]
[1736986759238,3.2078,3425.5,3425.0,1.45977]
[1736986759434,3.2078,3425.5,3425.4,0.58384]
[1736986760328,3.2078,3425.5,3425.1,0.4419]
[1736986760639,3.2078,3425.5,3425.3,0.58385]
[1736986760640,3.79163,3425.5,3425.3,0.58385]
[1736986760836,3.2078,3425.5,3425.1,0.4419]
[1736986761037,3.2078,3425.9,3425.1,0.4419]
[1736986761432,0.58379,3425.7,3425.5,0.58382]
[1736986761739,3.2078,3425.9,3425.8,0.58377]
[1736986762133,4.1328,3426.4,3426.3,0.58369]
[1736986762330,3.6943,3426.4,3426.3,0.58369]
[1736986762539,3.6943,3426.4,3425.6,1.45949]
[1736986762540,3.6943,3426.4,3426.2,0.58369]
[1736986762742,3.6943,3426.4,3426.3,0.58369]
[1736986762943,3.6943,3426.4,3425.7,1.45948]
[1736986763145,3.2078,3426.4,3426.3,0.58369]
[1736986763647,2.77472767,3426.7,3425.7,1.45948]
[1736986763940,0.58363,3426.7,3426.4,0.58366]
[1736986764144,0.58365,3426.6,3426.3,0.58367]
[1736986764443,3.2078,3426.8,3426.5,0.58365]
[1736986764644,3.79141,3426.8,3426.5,0.58365]
[1736986764849,3.2078,3426.8,3426.0,0.4597]
[1736986765253,3.2078,3426.8,3426.7,0.58362]
[1736986766735,3.2078,3426.8,3426.4,0.4567]
[1736986766736,3.2078,3427.2,3426.4,0.4567]
[1736986767047,7.828,3433.0,3426.4,0.4567]
[1736986767048,3.2078,3427.6,3427.5,0.58348]
[1736986767543,3.2078,3428.0,3427.1,6.44092767]
[1736986767743,3.2078,3428.0,3427.9,0.58341]
[1736986768943,3.2078,3428.4,3427.5,7.71772767]
[1736986769139,3.79114,3428.4,3428.1,0.58336]
[1736986769340,3.2078,3428.4,3427.5,3.654]
[1736986769739,3.2078,3428.9,3428.2,2.77472767]
[1736986769941,3.2078,3428.9,3428.8,0.58326]
[1736986770249,3.2078,3429.3,3429.2,0.58319]
[1736986770948,3.2078,3429.7,3429.6,0.58312]
[1736986771138,1.05395,3430.1,3429.0,2.77472767]
[1736986771342,0.58307,3430.0,3429.0,2.77472767]
[1736986771546,0.4709,3430.1,3429.0,2.77472767]
[1736986771944,1.05395,3430.1,3429.4,3.2078]
[1736986772148,0.4709,3430.1,3429.5,0.58314]
[1736986772348,0.4709,3430.1,3429.4,3.2078]
[1736986772651,3.2078,3430.2,3429.9,0.58307]
[1736986773839,3.2078,3430.2,3429.4,3.2078]
[1736986774540,3.2078,3430.2,3430.1,0.58304]
[1736986774743,3.2078,3430.2,3429.4,3.2078]
[1736986774944,3.2078,3430.2,3430.0,0.58305]
[1736986775142,3.2078,3430.2,3429.9,0.58306]
[1736986776043,0.58304,3430.1,3429.6,0.58311]
[1736986776245,3.2078,3429.8,3429.0,3.6844]
[1736986776866,3.2078,3429.8,3429.7,0.58311]
[1736986777143,3.2078,3430.2,3430.1,0.58304]
[1736986777348,3.2078,3430.2,3429.4,7.44040767]
[1736986777349,3.2078,3430.6,3429.9,0.58307]
[1736986777551,3.2078,3430.6,3430.5,0.58297]
[1736986778137,3.2078,3430.6,3429.8,5.98252767]
[1736986778343,3.2078,3430.6,3430.3,0.583]
[1736986778549,3.79075,3430.6,3430.3,0.583]
[1736986779049,3.79075,3430.6,3430.0,0.58305]
[1736986779050,0.58297,3430.5,3430.0,0.58305]
[1736986779346,5.98252767,3430.6,3430.0,0.58305]
[1736986779555,3.2078,3430.6,3430.0,0.58305]
[1736986779852,0.58301,3430.3,3430.0,0.58305]
[1736986780546,3.2078,3430.6,3429.8,3.2078]
[1736986780751,0.58298,3430.5,3430.1,0.58304]
[1736986781052,3.2078,3430.6,3429.9,0.58306]
[1736986781247,0.58302,3430.2,3429.9,0.58306]
[1736986781454,0.58301,3430.3,3430.0,0.58305]
[1736986781649,0.58298,3430.5,3430.2,0.58302]
[1736986781957,0.58298,3430.5,3429.8,3.2078]
[1736986781958,3.2078,3430.6,3430.4,0.58297]
[1736986782247,3.2078,3430.6,3429.8,3.2078]
[1736986782448,3.79076,3430.6,3430.3,0.583]
[1736986782648,3.2078,3430.6,3429.8,3.2078]
[1736986782845,0.58314,3429.6,3429.2,0.58318]
[1736986783055,0.58319,3429.2,3428.8,0.58324]
[1736986783256,0.5832,3429.2,3428.9,0.58323]
[1736986783445,3.2078,3429.3,3429.0,0.58322]
[1736986783748,3.2078,3429.3,3429.2,0.58319]
[1736986783950,0.4417,3430.2,3429.2,3.2078]
[1736986784152,3.2078,3430.3,3429.5,2.77472767]
[1736986784354,3.2078,3430.3,3430.2,0.58302]
[1736986785258,3.2078,3430.7,3430.6,0.58295]
[1736986785751,3.2078,3431.3,3431.1,0.58286]
[1736986786762,3.2078,3431.3,3430.6,0.4763]
[1736986786763,3.79065,3431.3,3431.0,0.58288]
[1736986787149,3.2078,3431.3,3430.6,0.4763]
[1736986787354,3.2078,3431.3,3431.1,0.58287]
[1736986787859,3.2078,3431.3,3430.6,0.4763]
[1736986788256,3.2078,3431.3,3431.2,0.58285]
[1736986788756,3.2078,3431.3,3430.6,0.4763]
[1736986789059,3.2078,3431.3,3431.1,0.58287]
[1736986789653,3.2078,3431.3,3431.2,0.58285]
[1736986790051,3.2078,3431.3,3430.6,0.4763]
[1736986790251,3.2078,3431.3,3431.2,0.58285]
[1736986790556,0.58286,3431.2,3430.5,3.2078]
[1736986790764,3.2078,3431.3,3431.1,0.58286]
[1736986790954,3.2078,3431.3,3431.2,0.58285]
[1736986791152,3.2078,3431.3,3430.5,3.2078]
[1736986791752,3.2078,3431.3,3430.6,0.58295]
[1736986791957,0.58287,3431.1,3430.5,3.2078]
[1736986792256,0.58287,3431.1,3430.8,0.58291]
[1736986792458,0.58291,3430.9,3430.6,0.58295]
[1736986792764,1.271,3430.8,3430.0,3.2078]
[1736986792960,3.2078,3430.5,3429.4,3.2078]
[1736986793261,1.271,3430.8,3429.0,3.2078]
[1736986793262,3.2078,3429.8,3429.0,3.2078]
[1736986793451,0.4488,3430.4,3428.5,0.23695193]
[1736986793452,3.2078,3429.3,3428.5,0.23695193]
[1736986793657,3.2078,3429.3,3428.5,3.2078]
[1736986793853,3.2078,3429.3,3428.2,42.25841]
[1736986794058,0.5832,3429.2,3429.0,0.58322]
[1736986794256,0.5832,3429.2,3428.2,42.25841]
[1736986794257,3.2078,3429.3,3429.2,0.58319]
[1736986794861,3.2078,3429.7,3429.6,0.58312]
[1736986796160,3.2078,3429.7,3429.6,0.9389295]
[1736986797061,3.79081,3430.3,3430.0,0.58305]
[1736986797259,3.79081,3430.3,3430.0,0.58304]
[1736986797465,3.2078,3430.3,3429.5,3.2078]
[1736986797665,3.2078,3430.3,3429.6,0.35662329]
[1736986797861,0.58301,3430.3,3430.0,0.58304]
[1736986798068,0.4591,3430.4,3429.5,3.2078]
[1736986798369,0.58304,3430.1,3429.6,0.35661353]
[1736986798559,0.58305,3430.1,3429.8,0.58308]
[1736986798761,3.2078,3430.3,3429.8,0.58308]
[1736986798762,0.58306,3430.0,3429.8,0.58308]
[1736986798968,3.2078,3430.3,3429.1,3.6718]
[1736986799166,0.58307,3430.0,3429.7,0.5831]
[1736986799463,3.2078,3429.9,3429.1,3.6718]
[1736986799679,0.58314,3429.6,3429.2,0.3572383]
[1736986799962,0.58311,3429.7,3429.5,0.58313]
[1736986800165,0.58309,3429.8,3429.6,0.58311]
[1736986800556,3.2078,3429.9,3429.5,0.58313]
[1736986800762,0.58312,3429.7,3429.6,0.35733571]
[1736986801267,3.2078,3429.9,3429.1,3.2078]
[1736986801571,3.2078,3430.3,3430.2,0.58302]
[1736986801765,3.2078,3430.3,3430.2,0.94036491]
[1736986802066,3.2078,3430.7,3430.6,0.58295]
[1736986802364,3.2078,3431.1,3431.0,0.58289]
[1736986802566,3.2078,3431.1,3431.0,0.94023491]
[1736986804270,3.79056,3431.8,3431.0,3.56514491]
[1736986804468,3.79056,3431.8,3431.7,0.58277]
[1736986804469,3.2078,3431.8,3431.7,0.58277]
[1736986804770,3.2078,3431.8,3431.7,0.94011491]
[1736986805471,3.2078,3431.8,3431.7,0.58277]
[1736986805764,3.2078,3431.8,3431.7,0.93978341]
[1736986805966,3.79055,3431.8,3431.7,0.35701341]
[1736986806270,3.79055,3431.8,3431.3,0.58283]
[1736986806271,0.58279,3431.6,3431.3,0.58283]
[1736986806465,3.2078,3431.8,3431.4,0.35696783]
[1736986806672,0.58278,3431.6,3431.3,0.58283]
[1736986806966,0.5828,3431.5,3431.4,0.35698404]
[1736986807167,0.58281,3431.5,3431.4,0.35698058]
[1736986807369,0.4771,3431.7,3431.0,3.2078]
[1736986807572,0.4771,3431.7,3431.4,0.58282]
[1736986807767,3.2078,3431.8,3431.7,0.58277]
[1736986807970,3.2078,3432.2,3431.9,0.58272]
[1736986808470,3.2078,3432.2,3431.5,0.4629]
[1736986808671,3.2078,3432.2,3432.1,0.5827]
[1736986809871,3.2078,3432.8,3432.1,0.35665961]
[1736986810067,3.2078,3432.8,3432.7,0.5826]
[1736986810671,3.2078,3433.2,3432.7,0.35643852]
[1736986810876,3.2078,3433.2,3433.1,0.58253]
[1736986811071,3.2078,3433.2,3433.0,0.58254]
[1736986811267,3.2078,3433.2,3432.4,0.4629]
[1736986811574,1.02829,3433.4,3432.5,0.35617657]
[1736986811872,3.2078,3433.6,3432.4,0.4629]
[1736986811873,3.2078,3433.6,3432.8,3.2078]
[1736986812067,3.79025,3433.6,3432.8,3.2078]
[1736986812262,3.79025,3433.6,3433.2,0.58251]
[1736986812668,0.58246,3433.5,3433.1,0.58252]
[1736986813069,0.5825,3433.3,3432.9,0.58255]
[1736986813268,0.58249,3433.4,3432.8,3.2078]
[1736986813568,3.2078,3433.6,3433.3,0.58248]
[1736986813773,3.79025,3433.6,3433.2,0.58251]
[1736986814065,3.2078,3433.6,3433.0,2.77472767]
[1736986814675,3.2078,3433.6,3433.3,0.58249]
[1736986814978,3.2078,3433.6,3433.0,2.77472767]
[1736986815475,3.2078,3433.6,3433.5,0.58246]
[1736986816067,3.2078,3433.6,3433.0,2.77472767]
[1736986816465,0.58242,3433.8,3433.3,0.58248]
[1736986816674,0.58246,3433.6,3433.1,0.58252]
[1736986816975,0.58256,3433.0,3432.8,3.2078]
[1736986817176,0.58256,3433.0,3432.6,0.5826]
[1736986817476,0.58256,3433.0,3432.5,0.58263]
[1736986817669,3.2078,3433.2,3432.6,0.5826]
[1736986817871,3.2078,3433.2,3432.0,0.92]
[1736986817872,3.2078,3433.2,3432.1,3.2078]
[1736986818070,0.58263,3432.6,3432.2,0.58267]
[1736986818269,0.58264,3432.5,3432.2,0.58267]
[1736986818470,0.58271,3432.1,3431.7,0.58276]
[1736986818664,0.58274,3431.9,3431.6,0.4843]
[1736986818878,0.58274,3431.9,3431.6,1.06708]
[1736986819070,0.58277,3431.7,3431.6,0.4843]
[1736986819267,3.2078,3432.0,3430.9,3.2078]
[1736986819566,3.2078,3432.0,3430.2,1.27]
[1736986819567,0.58292,3430.8,3430.5,4.27506]
[1736986819874,0.58298,3430.5,3430.2,0.58301]
[1736986820268,3.2078,3430.8,3429.8,40.8]
[1736986820471,3.2078,3430.4,3429.7,0.4712]
[1736986820667,0.58302,3430.3,3429.9,0.58307]
[1736986820875,3.2078,3430.4,3430.0,0.58304]
[1736986820876,3.7908,3430.4,3430.0,0.58304]
[1736986821173,0.58307,3429.9,3429.5,0.58313]
[1736986821474,0.58307,3429.9,3429.0,5.98252767]
[1736986821475,3.2078,3430.0,3429.0,3.2078]
[1736986821671,0.58312,3429.6,3429.2,0.58319]
[1736986822073,3.2078,3430.0,3429.0,3.2078]
[1736986822575,0.58307,3429.9,3429.4,0.58314]
[1736986822876,0.5831,3429.8,3429.0,5.98252767]
[1736986823063,3.2078,3430.0,3429.0,5.98252767]
[1736986823269,0.58308,3429.9,3429.5,0.58313]
[1736986823472,3.2078,3430.0,3429.4,3.2078]
[1736986823667,3.2078,3430.0,3429.9,0.58307]
[1736986823875,1.27,3430.5,3430.0,0.58304]
[1736986823876,1.85298,3430.5,3430.0,0.58304]
[1736986824070,1.27,3430.5,3430.3,0.58299]
[1736986824269,1.27,3430.5,3430.2,0.58302]
[1736986824564,1.27,3430.5,3430.3,0.58299]
[1736986824875,3.2078,3430.7,3430.5,0.58296]
[1736986825070,3.2078,3430.7,3429.8,3.2078]
[1736986825478,3.2078,3430.7,3430.4,0.58298]
[1736986825775,3.2078,3430.7,3429.9,40.8]
[1736986826074,3.2078,3431.1,3431.0,0.58289]
[1736986827073,3.2078,3431.9,3431.8,0.58275]
[1736986827265,3.2078,3431.9,3430.9,1.45726]
[1736986827266,4.4728,3432.6,3431.4,3.2078]
[1736986827671,3.2078,3431.8,3431.0,3.6637]
[1736986827867,3.2078,3431.8,3431.2,0.58285]
[1736986827868,0.5828,3431.6,3431.2,0.58285]
[1736986828076,3.2078,3431.8,3431.0,3.2078]
[1736986828273,3.2078,3431.4,3430.3,3.7908]
[1736986828476,3.2078,3431.0,3430.3,3.2078]
[1736986828680,0.5829,3430.9,3430.5,0.58296]
[1736986828880,0.58294,3430.7,3430.3,3.7908]
[1736986829076,3.2078,3431.0,3430.3,3.2078]
[1736986829273,3.2078,3430.4,3429.6,3.2078]
[1736986829477,3.2078,3430.2,3429.1,3.2078]
[1736986829677,3.2078,3430.2,3429.3,0.58316]
[1736986829678,0.58304,3430.1,3429.3,0.58316]
[1736986829977,3.2078,3430.2,3429.1,44.0078]
[1736986830282,0.58315,3429.5,3429.1,3.2078]
[1736986830575,3.2078,3430.2,3429.1,3.2078]
[1736986830781,3.2078,3430.2,3429.6,0.58312]
[1736986830973,3.79083,3430.2,3429.8,0.58309]
[1736986831283,3.2078,3430.2,3429.9,0.58307]
[1736986831479,3.2078,3430.2,3429.6,3.2078]
[1736986831670,3.2078,3430.2,3429.9,0.58307]
[1736986832081,3.2078,3430.2,3430.1,0.58304]
[1736986833281,3.2078,3430.2,3429.7,0.58311]
[1736986833479,3.2078,3430.7,3429.6,3.2078]
[1736986833682,3.79074,3430.7,3429.6,4.66561]
[1736986833983,0.58297,3430.6,3430.2,0.58301]
[1736986834171,0.58297,3430.6,3430.0,3.2078]
[1736986834379,0.58297,3430.6,3430.3,0.583]
[1736986834682,3.2078,3431.1,3430.0,6.35777567]
[1736986834876,3.2078,3431.1,3429.7,1.45776]
[1736986834877,3.2078,3431.8,3430.9,3.2078]
[1736986835072,3.2078,3432.2,3431.4,3.2078]
[1736986835278,3.2078,3432.6,3431.8,3.2078]
[1736986835473,0.58266,3432.4,3432.0,0.58271]
[1736986835680,0.58266,3432.4,3431.8,3.2078]
[1736986835881,0.58264,3432.5,3432.1,0.58269]
[1736986836080,3.2078,3432.6,3432.1,0.58269]
[1736986836081,0.58266,3432.4,3432.1,0.58269]
[1736986836382,0.5827,3432.1,3431.8,3.2078]
[1736986836583,3.2078,3432.6,3431.8,3.2078]
[1736986836584,0.58273,3431.9,3431.8,3.2078]
[1736986837281,3.2078,3431.9,3431.1,0.58285]
[1736986837580,0.58288,3431.1,3430.7,0.58293]
[1736986837780,0.58291,3430.9,3430.4,0.58299]
[1736986837979,0.58289,3431.0,3430.6,0.58294]
[1736986838179,3.2078,3430.9,3430.3,3.2078]
[1736986838383,3.2078,3430.9,3430.6,0.58295]
[1736986838576,3.2078,3431.3,3430.3,3.2078]
[1736986838786,3.673,3431.7,3430.7,3.2078]
[1736986838985,3.2078,3431.7,3431.1,3.2078]
[1736986839183,3.2078,3431.7,3431.6,0.58278]
[1736986839378,3.79058,3431.7,3431.4,0.58282]
[1736986839578,3.79058,3431.7,3431.1,3.2078]
[1736986839579,3.2078,3431.7,3431.1,3.2078]
[1736986839778,0.58279,3431.6,3431.1,3.2078]
[1736986839977,3.79057,3431.7,3431.4,0.58281]
[1736986840183,3.2078,3431.7,3431.1,3.2078]
[1736986840382,3.2078,3431.7,3431.6,0.58278]
[1736986840682,3.2078,3432.3,3431.5,3.2078]
[1736986840880,3.2078,3432.3,3432.2,0.58268]
[1736986841190,3.2078,3432.7,3432.2,3.2078]
[1736986841386,3.2078,3432.7,3432.3,0.58267]
[1736986841686,0.58261,3432.7,3432.4,0.58265]
[1736986842187,0.58261,3432.7,3432.3,0.58266]
[1736986842391,0.58261,3432.7,3432.4,0.58265]
[1736986842585,3.2078,3433.1,3432.2,3.2078]
[1736986842799,0.58264,3432.5,3432.2,3.2078]
[1736986842994,0.58262,3432.6,3432.2,3.79047]
[1736986843287,0.58264,3432.5,3432.2,3.79047]
[1736986843491,0.58264,3432.5,3432.2,3.79048]
[1736986843685,1.265,3433.0,3432.2,3.2078]
[1736986843992,0.58264,3432.5,3432.2,3.2078]
[1736986844184,0.58267,3432.3,3432.2,3.2078]
[1736986844385,0.58272,3432.0,3431.7,0.58276]
[1736986844592,0.58269,3432.2,3431.8,0.58274]
[1736986844781,3.2078,3432.4,3431.8,0.58274]
[1736986844983,6.35777567,3432.4,3431.6,3.2078]
[1736986845191,6.35777567,3432.4,3431.2,3.2078]
[1736986845192,3.2078,3432.0,3431.2,3.2078]
[1736986845495,1.45703,3431.5,3430.4,0.58298]
[1736986845696,0.58293,3430.8,3430.4,0.58299]
[1736986846195,3.2078,3431.1,3430.3,3.2078]
[1736986846593,3.2078,3431.1,3430.4,0.58299]
[1736986846896,3.2078,3431.1,3430.3,3.2078]
[1736986846897,0.58287,3431.1,3430.8,0.58291]
[1736986847191,3.2078,3431.6,3430.3,3.2078]
[1736986847492,0.58299,3430.4,3429.8,0.58309]
[1736986847686,0.58299,3430.4,3430.1,0.58303]
[1736986847889,0.58299,3430.4,3429.7,3.6665]
[1736986848193,0.58299,3430.4,3430.1,0.58304]
[1736986848381,3.2078,3430.9,3429.7,3.6665]
[1736986848588,0.58302,3430.3,3429.9,0.58306]
[1736986848787,0.58302,3430.3,3429.9,0.58307]
[1736986848990,0.58303,3430.2,3429.8,0.58308]
[1736986849188,3.2078,3430.5,3429.7,4.2496]
[1736986849394,0.58309,3429.8,3429.7,3.2078]
[1736986849595,3.2078,3430.0,3429.2,3.6946]
[1736986849791,3.2078,3430.0,3429.2,3.2078]
[1736986849987,0.58317,3429.3,3429.2,3.2078]
[1736986850386,3.2078,3429.7,3428.4,3.2078]
[1736986850592,0.58324,3429.0,3428.4,3.2078]
[1736986850794,0.58325,3428.9,3428.5,0.58331]
[1736986850990,0.58326,3428.8,3428.4,3.79112]
[1736986851190,0.58328,3428.7,3428.4,3.2078]
[1736986851498,0.58325,3428.9,3428.5,0.58331]
[1736986851693,3.2078,3429.3,3428.4,3.2078]
[1736986851901,0.58326,3428.9,3428.5,0.58331]
[1736986852097,0.58326,3428.9,3428.4,3.2078]
[1736986852098,3.2078,3429.3,3428.4,3.2078]
[1736986852397,0.58323,3429.0,3428.6,0.58329]
[1736986852586,0.58323,3429.0,3428.4,3.2078]
[1736986852796,0.58322,3429.1,3428.6,0.58329]
[1736986852992,3.2078,3429.3,3428.4,3.2078]
[1736986853204,3.2078,3429.3,3428.6,0.58329]
[1736986853399,3.2078,3429.3,3428.4,3.2078]
[1736986853595,3.2078,3429.3,3428.9,0.58323]
[1736986853894,3.2078,3429.7,3428.9,3.2078]
[1736986854099,0.58317,3429.4,3428.9,3.79103]
[1736986854503,3.2078,3429.1,3428.3,3.2078]
[1736986855000,0.58328,3428.7,3428.3,3.79114]
[1736986855197,0.58325,3428.9,3428.4,0.58332]
[1736986855994,3.2078,3429.1,3428.4,0.58332]
[1736986856199,3.2078,3429.1,3428.5,0.5833]
[1736986857195,3.2078,3429.1,3428.3,3.2078]
[1736986857196,3.2078,3429.1,3428.4,0.58333]
[1736986857398,3.2078,3429.1,3428.3,3.2078]
[1736986857599,3.2078,3429.1,3429.0,0.58323]
[1736986857804,3.2078,3429.1,3428.3,3.2078]
[1736986858001,3.2078,3429.1,3428.6,0.58328]
[1736986858191,3.2078,3429.1,3428.7,0.58326]
[1736986858803,3.2078,3429.1,3428.8,0.58325]
[1736986859102,3.2078,3429.1,3428.3,3.2078]
[1736986859103,3.2078,3429.1,3428.6,0.58328]
[1736986859300,3.2078,3429.1,3428.3,3.2078]
[1736986859500,3.2078,3429.1,3428.8,0.58325]
[1736986859897,3.79101,3429.1,3428.7,0.58327]
[1736986860199,3.2078,3429.1,3428.9,0.58324]
[1736986860402,3.2078,3429.1,3428.8,0.58325]
[1736986860697,3.2078,3429.1,3428.4,40.8]
[1736986861002,3.2078,3429.7,3429.5,0.58314]
[1736986861200,3.2078,3429.7,3428.9,3.2078]
[1736986861404,3.2078,3429.7,3429.2,0.58319]
[1736986861698,0.58317,3429.4,3429.0,3.79101]
[1736986861897,3.2078,3429.7,3428.5,3.2078]
[1736986862102,0.58322,3429.1,3428.8,0.58326]
[1736986862294,0.58322,3429.1,3428.5,3.2078]
[1736986862295,3.2078,3429.7,3428.5,3.2078]
[1736986862492,0.58329,3428.6,3428.5,3.2078]
[1736986863104,3.2078,3428.7,3427.9,3.2078]
[1736986864106,0.58333,3428.4,3428.1,0.58338]
[1736986864304,0.58335,3428.3,3428.0,0.58338]
[1736986864611,3.2078,3428.7,3428.0,0.58338]
[1736986864805,0.58332,3428.5,3428.0,0.5834]
[1736986865002,3.2078,3428.7,3428.0,0.5834]
[1736986865200,0.58335,3428.3,3428.0,0.5834]
[1736986865402,0.58336,3428.3,3427.9,3.7912]
[1736986865700,0.58334,3428.4,3428.0,0.58339]
[1736986865900,0.58335,3428.3,3428.0,0.58339]
[1736986866413,0.58332,3428.5,3427.9,3.2078]
[1736986866712,0.5833,3428.6,3428.3,0.58333]
[1736986866896,3.2078,3428.7,3427.9,3.2078]
[1736986867101,3.2078,3428.7,3428.6,0.58329]
[1736986867308,3.2078,3428.7,3427.9,3.2078]
[1736986867908,0.58331,3428.5,3427.9,3.2078]